fUSD/lending_fUSD_20260519
["ID","MTS","AMOUNT","RATE_DAILY","PERIOD"]
[422600794,1779138640000,-28002.62496166,0.00014002,2]
[422600799,1779138640000,-150.0,0.00014059,2]
[422600797,1779138640000,-150.0,0.0001405,2]
[422600790,1779138640000,-150.0,0.00013987,2]
[422600784,1779138640000,-166.66,0.00013973,2]
[422600793,1779138640000,-969.69792251,0.00014,2]
[422600787,1779138640000,-150.0,0.00013987,2]
[422600788,1779138640000,-150.0,0.00013987,2]
[422600800,1779138640000,-150.0,0.00014087,2]
[422600801,1779138640000,-150.0,0.00014087,2]
[422600792,1779138640000,-1012.14993798,0.0001399,2]
[422600805,1779138640000,-1832.11347403,0.00014139,2]
[422600802,1779138640000,-166.66,0.0001411,2]
[422600833,1779138640000,-1832.11347403,0.00014552,2]
[422600845,1779138640000,-150.0,0.00014701,2]
[422600840,1779138640000,-4684.34643903,0.0001466,2]
[422600855,1779138640000,-150.0,0.00014844,2]
[422600860,1779138640000,-290.88615179,0.00014908,2]
[422600859,1779138640000,-16559.1287468,0.000149,3]
[422600863,1779138640000,-8614.07458706,0.00014965,2]
[422600861,1779138640000,-150.0,0.00014915,2]
[422600862,1779138640000,-150.0,0.00014924,2]
[422600864,1779138640000,-28002.62496166,0.00014965,2]
[422600835,1779138640000,-150.0,0.00014587,2]
[422600869,1779138640000,-250.88125163,0.00014986,2]
[422600872,1779138640000,-151.33807361,0.00014986,2]
[422600877,1779138640000,-300.0,0.00014999,2]
[422600871,1779138640000,-151.05845011,0.00014986,2]
[422600874,1779138640000,-164.93102534,0.00014986,2]
[422600875,1779138640000,-300.0,0.00014999,2]
[422600880,1779138640000,-785.28610475,0.00015,2]
[422600876,1779138640000,-300.0,0.00014999,2]
[422600870,1779138640000,-150.0,0.00014986,2]
[422600873,1779138640000,-150.0,0.00014986,2]
[422600878,1779138640000,-300.0,0.00014999,2]
[422600879,1779138640000,-3520392.0988144,0.00015,2]
[422600883,1779138640000,-448.15390644,0.00015,2]
[422600881,1779138640000,-157.25023656,0.00011875,2]
[422600882,1779138640000,-1481.76509331,0.00015,2]
[422600868,1779138640000,-278.83771142,0.00014986,2]
[422600867,1779138640000,-4684.34643903,0.00014983,2]
[422600865,1779138640000,-711.17799973,0.00014965,2]
[422600857,1779138640000,-150.0,0.00014886,2]
[422600838,1779138640000,-150.0,0.00014629,2]
[422600831,1779138640000,-150.0,0.00014537,2]
[422600858,1779138640000,-711.17799973,0.00014887,2]
[422600834,1779138640000,-150.0,0.00014558,2]
[422600839,1779138640000,-28002.62496166,0.00014644,2]
[422600841,1779138640000,-4609.0,0.00014663,2]
[422600830,1779138640000,-2000.0,0.00014519,2]
[422600836,1779138640000,-150.0,0.00014612,2]
[422600829,1779138640000,-150.0,0.00014487,2]
[422600843,1779138640000,-150.0,0.00014687,2]
[422600853,1779138640000,-272.11780025,0.00014832,2]
[422600837,1779138640000,-150.0,0.00014612,2]
[422600849,1779138640000,-150.0,0.00014799,2]
[422600846,1779138640000,-150.0,0.00014737,2]
[422600844,1779138640000,-150.0,0.00014687,2]
[422600852,1779138640000,-1152.0,0.00014824,2]
[422600848,1779138640000,-150.0,0.00014786,2]
[422600847,1779138640000,-150.0,0.00014772,2]
[422600842,1779138640000,-150.0,0.00014674,2]
[422600851,1779138640000,-711.17799974,0.00014808,2]
[422600850,1779138640000,-150.0,0.00014799,2]
[422600856,1779138640000,-150.0,0.00014861,2]
[422600866,1779138640000,-1003.0014734,0.00014983,2]
[422600854,1779138640000,-150.0,0.00014836,2]
[422600888,1779138646000,-1201.41969618,0.00014965,2]
[422600897,1779138648000,-800.76947126,0.00015,2]
[422600895,1779138648000,-630.69377785,0.00014965,2]
[422600896,1779138648000,-3898.17047016,0.00015,2]
[422600899,1779138649000,-412.75432475,0.00015,2]
[422600898,1779138649000,-17919.32306449,0.00015,2]
[422600901,1779139276000,-292.54050087,0.00011799,2]
[422600902,1779139317000,196.33462482,0.00013751,21]
[422600903,1779139588000,178.52,0.00029459,120]
[422600904,1779139598000,-543.20671772,0.00011799,2]
[422600905,1779139759000,1000.0,0.00029458,120]
[422600916,1779139832000,-208.5339928,0.00012148,2]
[422600909,1779139832000,-265.84703492,0.00011799,2]
[422600910,1779139832000,-753.07092822,0.00011799,2]
[422600912,1779139832000,-250.0,0.00011799,2]
[422600911,1779139832000,-181.08203686,0.00011799,2]
[422600913,1779139832000,-215.11887611,0.00011881,2]
[422600914,1779139832000,-160.0,0.00011922,2]
[422600915,1779139832000,-2000.0,0.00011975,2]
[422600919,1779139832000,-200.0,0.00012808,2]
[422600918,1779139832000,-160.9,0.00012796,2]
[422600921,1779139832000,-391.48,0.00012815,2]
[422600926,1779139832000,-13330.80382015,0.0001306,2]
[422600920,1779139832000,-178.52,0.00012815,2]
[422600922,1779139832000,-250.0,0.00012979,2]
[422600925,1779139832000,-94037.09469691,0.0001306,2]
[422600923,1779139832000,-250.0,0.00012979,2]
[422600924,1779139832000,-1680.0,0.00012979,2]
[422600917,1779139832000,-855.44,0.00012783,2]
[422600971,1779139838000,-150.0,0.00013545,2]
[422600966,1779139838000,-157.53190862,0.00013488,2]
[422600969,1779139838000,-157.53190862,0.00013518,2]
[422600970,1779139838000,-157.53190862,0.00013533,2]
[422600972,1779139838000,-150.0,0.00013545,2]
[422600974,1779139838000,-150.0,0.00013553,2]
[422600976,1779139838000,-150.0,0.00013576,2]
[422600982,1779139838000,-157.53190862,0.00013609,2]
[422600975,1779139838000,-157.53190862,0.00013563,2]
[422600973,1779139838000,-157.53190862,0.00013548,2]
[422600968,1779139838000,-157.53190862,0.00013503,2]
[422600979,1779139838000,-157.53190862,0.00013594,2]
[422600980,1779139838000,-150.0,0.00013603,2]
[422600978,1779139838000,-157.53190862,0.00013578,2]
[422600977,1779139838000,-150.0,0.00013576,2]
[422600967,1779139838000,-150.0,0.00013488,2]
[422600963,1779139838000,-150.0,0.00013488,2]
[422600964,1779139838000,-150.0,0.00013488,2]
[422600950,1779139838000,-273.78,0.00013092,2]
[422600951,1779139838000,-166.66,0.00013129,2]
[422600949,1779139838000,-9819.53828294,0.0001306,2]
[422600952,1779139838000,-150.0,0.00013137,2]
[422600954,1779139838000,-2000.0,0.00013271,2]
[422600953,1779139838000,-2259.88,0.0001316,2]
[422600965,1779139838000,-150.0,0.00013488,2]
[422600955,1779139838000,-150.0,0.00013416,2]
[422600961,1779139838000,-150.0,0.00013488,2]
[422600957,1779139838000,-150.0,0.00013416,2]
[422600960,1779139838000,-150.0,0.00013488,2]
[422600959,1779139838000,-150.0,0.00013488,2]
[422600981,1779139838000,-150.0,0.00013603,2]
[422600962,1779139838000,-150.0,0.00013488,2]
[422600958,1779139838000,-208.0724838,0.00013416,2]
[422600986,1779139838000,-157.53190862,0.00013639,2]
[422600956,1779139838000,-150.0,0.00013416,2]
[422600984,1779139838000,-150.0,0.00013624,2]
[422601025,1779139838000,-178.349153,0.0001371,2]
[422601027,1779139838000,-157.53190862,0.00013715,2]
[422601030,1779139838000,-150.0,0.00013718,2]
[422601029,1779139838000,-150.0,0.00013718,2]
[422601013,1779139838000,-166.66,0.00013699,2]
[422601015,1779139838000,-2500.0,0.00013699,2]
[422601019,1779139838000,-246.898731,0.0001371,2]
[422601017,1779139838000,-157.53190862,0.000137,2]
[422601023,1779139838000,-183.215546,0.0001371,2]
[422601021,1779139838000,-171.856762,0.0001371,2]
[422601033,1779139838000,-150.0,0.00013748,2]
[422601031,1779139838000,-157.53190862,0.0001373,2]
[422601034,1779139838000,-150.0,0.00013752,2]
[422601035,1779139838000,-150.0,0.0001376,2]
[422600983,1779139838000,-150.0,0.00013618,2]
[422601011,1779139838000,-1199.09,0.00013699,2]
[422601009,1779139838000,-150.99,0.00013699,2]
[422601032,1779139838000,-157.53190862,0.00013745,2]
[422601005,1779139838000,-500.0,0.00013698,2]
[422600985,1779139838000,-157.53190862,0.00013624,2]
[422601007,1779139838000,-9999.99,0.00013699,2]
[422600988,1779139838000,-157.53190862,0.00013654,2]
[422600987,1779139838000,-150.0,0.00013654,2]
[422600990,1779139838000,-150.0,0.00013661,2]
[422600992,1779139838000,-157.53190862,0.00013669,2]
[422600991,1779139838000,-150.0,0.00013664,2]
[422601003,1779139838000,-3017.79422518,0.00013698,2]
[422600989,1779139838000,-150.0,0.00013661,2]
[422600995,1779139838000,-1000.0,0.00013689,2]
[422600999,1779139838000,-500.0,0.00013698,2]
[422600994,1779139838000,-157.53190862,0.00013684,2]
[422600996,1779139838000,-1000.0,0.00013697,2]
[422600997,1779139838000,-500.0,0.00013698,2]
[422600993,1779139838000,-150.0,0.00013683,2]
[422601001,1779139838000,-500.0,0.00013698,2]
[422601078,1779139839000,-150.0,0.00014009,2]
[422601076,1779139839000,-150.0,0.00014006,2]
[422601075,1779139839000,-157.53190862,0.00014002,2]
[422601073,1779139839000,-29617.79542997,0.0001399,2]
[422601072,1779139839000,-157.53190862,0.00013987,2]
[422601071,1779139839000,-150.0,0.00013987,2]
[422601070,1779139839000,-150.0,0.00013987,2]
[422601069,1779139839000,-166.66,0.00013973,2]
[422601077,1779139839000,-150.0,0.00014006,2]
[422601068,1779139839000,-157.53190862,0.00013972,2]
[422601067,1779139839000,-500.0,0.00013972,2]
[422601074,1779139839000,-250.0,0.00014,2]
[422601079,1779139839000,-150.0,0.00014017,2]
[422601084,1779139839000,-157.53190862,0.00014063,2]
[422601082,1779139839000,-157.53190862,0.00014033,2]
[422601080,1779139839000,-157.53190862,0.00014017,2]
[422601083,1779139839000,-157.53190862,0.00014048,2]
[422601085,1779139839000,-150.0,0.00014064,2]
[422601086,1779139839000,-150.0,0.00014064,2]
[422601087,1779139839000,-150.0,0.00014074,2]
[422601089,1779139839000,-157.53190862,0.00014093,2]
[422601088,1779139839000,-157.53190862,0.00014078,2]
[422601090,1779139839000,-150.0,0.00014105,2]
[422601091,1779139839000,-157.53190862,0.00014108,2]
[422601066,1779139839000,-157.53190862,0.00013957,2]
[422601092,1779139839000,-166.66,0.0001411,2]
[422601081,1779139839000,-150.0,0.00014033,2]
[422601064,1779139839000,-150.0,0.00013949,2]
[422601044,1779139839000,-157.53190862,0.00013821,2]
[422601063,1779139839000,-150.0,0.00013944,2]
[422601093,1779139839000,-150.0,0.00014122,2]
[422601036,1779139839000,-157.53190862,0.0001376,2]
[422601039,1779139839000,-150.0,0.00013776,2]
[422601038,1779139839000,-150.0,0.00013776,2]
[422601037,1779139839000,-157.53190862,0.00013775,2]
[422601041,1779139839000,-157.53190862,0.00013806,2]
[422601042,1779139839000,-150.0,0.00013813,2]
[422601040,1779139839000,-157.53190862,0.0001379,2]
[422601046,1779139839000,-150.0,0.00013834,2]
[422601045,1779139839000,-150.0,0.00013834,2]
[422601043,1779139839000,-150.0,0.00013821,2]
[422601048,1779139839000,-157.53190862,0.00013836,2]
[422601065,1779139839000,-150.0,0.00013949,2]
[422601047,1779139839000,-166.66,0.00013836,2]
[422601053,1779139839000,-157.53190862,0.00013881,2]
[422601050,1779139839000,-157.53190862,0.00013851,2]
[422601054,1779139839000,-3671.7282,0.0001389,2]
[422601051,1779139839000,-157.53190862,0.00013866,2]
[422601056,1779139839000,-150.0,0.00013891,2]
[422601057,1779139839000,-150.0,0.00013896,2]
[422601055,1779139839000,-150.0,0.00013891,2]
[422601058,1779139839000,-157.53190862,0.00013896,2]
[422601059,1779139839000,-157.53190862,0.00013912,2]
[422601060,1779139839000,-157.53190862,0.00013927,2]
[422601061,1779139839000,-150.0,0.00013928,2]
[422601062,1779139839000,-157.53190862,0.00013942,2]
[422601049,1779139839000,-150.0,0.0001384,2]
[422601094,1779139839000,-150.0,0.00014122,2]
[422601052,1779139839000,-150.0,0.00013879,2]
[422601096,1779139839000,-157.53190862,0.00014139,2]
[422601128,1779139839000,-157.53190862,0.00014305,2]
[422601129,1779139839000,-150.0,0.0001432,2]
[422601130,1779139839000,-157.53190862,0.0001432,2]
[422601136,1779139839000,-5023.42655206,0.00014352,2]
[422601134,1779139839000,-150.0,0.00014352,2]
[422601132,1779139839000,-157.53190862,0.00014335,2]
[422601131,1779139839000,-150.0,0.00014335,2]
[422601133,1779139839000,-157.53190862,0.00014351,2]
[422601137,1779139839000,-13964.66404928,0.00014352,2]
[422601135,1779139839000,-150.0,0.00014352,2]
[422601152,1779139839000,-500.0,0.00014383,2]
[422601138,1779139839000,-157.53190862,0.00014366,2]
[422601140,1779139839000,-1352.378899,0.00014376,2]
[422601139,1779139839000,-150.0,0.00014369,2]
[422601142,1779139839000,-500.0,0.00014383,2]
[422601143,1779139839000,-500.0,0.00014383,2]
[422601145,1779139839000,-500.0,0.00014383,2]
[422601144,1779139839000,-500.0,0.00014383,2]
[422601146,1779139839000,-500.0,0.00014383,2]
[422601150,1779139839000,-615.41,0.00014383,2]
[422601148,1779139839000,-615.41,0.00014383,2]
[422601147,1779139839000,-500.0,0.00014383,2]
[422601149,1779139839000,-615.41,0.00014383,2]
[422601151,1779139839000,-500.0,0.00014383,2]
[422601154,1779139839000,-166.66,0.00014384,2]
[422601153,1779139839000,-500.0,0.00014383,2]
[422601095,1779139839000,-157.53190862,0.00014123,2]
[422601127,1779139839000,-150.0,0.00014305,2]
[422601125,1779139839000,-150.0,0.00014295,2]
[422601141,1779139839000,-157.53190862,0.00014381,2]
[422601126,1779139839000,-150.0,0.00014295,2]
[422601106,1779139839000,-157.53190862,0.00014199,2]
[422601124,1779139839000,-157.53190862,0.0001429,2]
[422601097,1779139839000,-150.0,0.00014139,2]
[422601098,1779139839000,-150.0,0.00014154,2]
[422601104,1779139839000,-157.53190862,0.00014184,2]
[422601105,1779139839000,-150.0,0.00014193,2]
[422601100,1779139839000,-150.0,0.00014169,2]
[422601102,1779139839000,-150.0,0.00014179,2]
[422601101,1779139839000,-157.53190862,0.00014169,2]
[422601099,1779139839000,-157.53190862,0.00014154,2]
[422601107,1779139839000,-150.0,0.00014204,2]
[422601109,1779139839000,-157.53190862,0.00014229,2]
[422601108,1779139839000,-157.53190862,0.00014214,2]
[422601110,1779139839000,-150.0,0.00014237,2]
[422601103,1779139839000,-150.0,0.00014179,2]
[422601122,1779139839000,-5000.0,0.00014284,2]
[422601111,1779139839000,-150.0,0.00014237,2]
[422601121,1779139839000,-13964.66404928,0.00014284,2]
[422601120,1779139839000,-5023.42655213,0.00014284,2]
[422601119,1779139839000,-150.0,0.00014281,2]
[422601123,1779139839000,-2500.0,0.00014284,2]
[422601118,1779139839000,-2351.0,0.00014277,2]
[422601117,1779139839000,-157.53190862,0.00014275,2]
[422601115,1779139839000,-157.53190862,0.0001426,2]
[422601113,1779139839000,-166.66,0.00014247,2]
[422601116,1779139839000,-150.0,0.0001427,2]
[422601114,1779139839000,-152.82493513,0.00014247,21]
[422601112,1779139839000,-157.53190862,0.00014245,2]
[422601203,1779139840000,-157.53190862,0.00014441,2]
[422601199,1779139840000,-157.53190862,0.00014411,2]
[422601202,1779139840000,-157.53190862,0.00014426,2]
[422601197,1779139840000,-150.0,0.0001441,2]
[422601195,1779139840000,-157.53190862,0.00014396,2]
[422601189,1779139840000,-500.0,0.00014389,2]
[422601193,1779139840000,-500.0,0.00014389,2]
[422601194,1779139840000,-300.0,0.00014389,2]
[422601191,1779139840000,-500.0,0.00014389,2]
[422601192,1779139840000,-500.0,0.00014389,2]
[422601200,1779139840000,-5023.42655206,0.00014421,2]
[422601196,1779139840000,-150.0,0.000144,2]
[422601198,1779139840000,-150.0,0.0001441,2]
[422601215,1779139840000,-157.53190862,0.00014487,2]
[422601204,1779139840000,-150.0,0.00014441,2]
[422601206,1779139840000,-157.53190862,0.00014456,2]
[422601209,1779139840000,-150.0,0.00014465,2]
[422601208,1779139840000,-150.0,0.00014457,2]
[422601211,1779139840000,-150.0,0.00014468,2]
[422601210,1779139840000,-150.0,0.00014468,2]
[422601218,1779139840000,-157.53190862,0.00014502,2]
[422601212,1779139840000,-157.53190862,0.00014472,2]
[422601216,1779139840000,-5023.42655206,0.00014489,2]
[422601213,1779139840000,-150.0,0.00014487,2]
[422601217,1779139840000,-13964.66404928,0.00014489,2]
[422601214,1779139840000,-150.0,0.00014487,2]
[422601184,1779139840000,-500.0,0.00014389,2]
[422601201,1779139840000,-13964.66404928,0.00014421,2]
[422601188,1779139840000,-500.0,0.00014389,2]
[422601160,1779139840000,-514.40476554,0.00014389,2]
[422601190,1779139840000,-500.0,0.00014389,2]
[422601155,1779139840000,-11645.8744285,0.00014384,2]
[422601219,1779139840000,-157.53190862,0.00014517,2]
[422601159,1779139840000,-17279.1784637,0.00014384,2]
[422601157,1779139840000,-337064.046927,0.00014384,2]
[422601158,1779139840000,-435562.0882226,0.00014384,2]
[422601156,1779139840000,-3135.3202044,0.00014384,2]
[422601163,1779139840000,-500.0,0.00014389,2]
[422601161,1779139840000,-500.0,0.00014389,2]
[422601162,1779139840000,-158.8310801,0.00014389,2]
[422601164,1779139840000,-500.0,0.00014389,2]
[422601167,1779139840000,-500.0,0.00014389,2]
[422601165,1779139840000,-500.0,0.00014389,2]
[422601166,1779139840000,-500.0,0.00014389,2]
[422601170,1779139840000,-500.0,0.00014389,2]
[422601168,1779139840000,-500.0,0.00014389,2]
[422601169,1779139840000,-500.0,0.00014389,2]
[422601171,1779139840000,-500.0,0.00014389,2]
[422601172,1779139840000,-500.0,0.00014389,2]
[422601178,1779139840000,-500.0,0.00014389,2]
[422601173,1779139840000,-500.0,0.00014389,2]
[422601175,1779139840000,-500.0,0.00014389,2]
[422601177,1779139840000,-500.0,0.00014389,2]
[422601180,1779139840000,-500.0,0.00014389,2]
[422601179,1779139840000,-500.0,0.00014389,2]
[422601181,1779139840000,-500.0,0.00014389,2]
[422601183,1779139840000,-500.0,0.00014389,2]
[422601182,1779139840000,-500.0,0.00014389,2]
[422601186,1779139840000,-500.0,0.00014389,2]
[422601185,1779139840000,-500.0,0.00014389,2]
[422601187,1779139840000,-478.35555193,0.00014389,2]
[422601221,1779139840000,-150.0,0.00014525,2]
[422601227,1779139840000,-13964.66404928,0.00014558,2]
[422601225,1779139840000,-157.53190862,0.00014547,2]
[422601258,1779139840000,-150.0,0.00014726,2]
[422601257,1779139840000,-150.0,0.00014722,2]
[422601259,1779139840000,-157.53190862,0.00014729,2]
[422601261,1779139840000,-150.0,0.00014756,2]
[422601262,1779139840000,-150.0,0.00014756,2]
[422601264,1779139840000,-5023.42655206,0.00014763,2]
[422601268,1779139840000,-150.0,0.00014791,2]
[422601267,1779139840000,-157.53190862,0.0001479,2]
[422601260,1779139840000,-157.53190862,0.00014744,2]
[422601263,1779139840000,-157.53190862,0.00014759,2]
[422601265,1779139840000,-13964.66404928,0.00014763,2]
[422601266,1779139840000,-157.53190862,0.00014774,2]
[422601269,1779139840000,-4101.64692948,0.000148,2]
[422601252,1779139840000,-150.0,0.00014698,2]
[422601270,1779139840000,-157.53190862,0.00014805,2]
[422601272,1779139840000,-150.0,0.00014813,2]
[422601220,1779139840000,-150.0,0.00014525,2]
[422601273,1779139840000,-150.0,0.00014813,2]
[422601278,1779139840000,-13964.66404928,0.00014832,2]
[422601279,1779139840000,-157.53190862,0.00014835,2]
[422601275,1779139840000,-157.53190862,0.0001482,2]
[422601280,1779139840000,-4101.64692944,0.0001484,2]
[422601276,1779139840000,-4101.64692944,0.0001482,2]
[422601277,1779139840000,-5023.42655206,0.00014832,2]
[422601282,1779139840000,-157.53190862,0.0001485,2]
[422601281,1779139840000,-150.0,0.0001485,2]
[422601284,1779139840000,-4101.64692944,0.0001486,2]
[422601283,1779139840000,-150.0,0.00014856,2]
[422601271,1779139840000,-150.0,0.0001481,2]
[422601256,1779139840000,-157.53190862,0.00014714,2]
[422601274,1779139840000,-150.0,0.0001482,2]
[422601250,1779139840000,-5023.42655206,0.00014695,2]
[422601254,1779139840000,-157.53190862,0.00014699,2]
[422601222,1779139840000,-150.0,0.0001453,2]
[422601223,1779139840000,-157.53190862,0.00014532,2]
[422601228,1779139840000,-157.53190862,0.00014562,2]
[422601230,1779139840000,-150.0,0.00014578,2]
[422601226,1779139840000,-5023.42655206,0.00014558,2]
[422601229,1779139840000,-157.53190862,0.00014578,2]
[422601231,1779139840000,-200.0,0.00014581,2]
[422601233,1779139840000,-150.0,0.00014583,2]
[422601232,1779139840000,-150.0,0.00014583,2]
[422601234,1779139840000,-157.53190862,0.00014593,2]
[422601236,1779139840000,-157.53190862,0.00014608,2]
[422601235,1779139840000,-150.0,0.00014595,2]
[422601238,1779139840000,-5023.42655206,0.00014626,2]
[422601224,1779139840000,-150.0,0.00014546,2]
[422601239,1779139840000,-13964.66404928,0.00014626,2]
[422601251,1779139840000,-13964.66404928,0.00014695,2]
[422601237,1779139840000,-157.53190862,0.00014623,2]
[422601253,1779139840000,-150.0,0.00014698,2]
[422601255,1779139840000,-150.0,0.00014714,2]
[422601249,1779139840000,-255.0,0.00014689,2]
[422601246,1779139840000,-150.0,0.00014661,2]
[422601248,1779139840000,-157.53190862,0.00014684,2]
[422601244,1779139840000,-150.0,0.00014653,2]
[422601245,1779139840000,-157.53190862,0.00014653,2]
[422601241,1779139840000,-157.53190862,0.00014638,2]
[422601242,1779139840000,-150.0,0.0001464,2]
[422601240,1779139840000,-150.0,0.00014634,2]
[422601243,1779139840000,-150.0,0.0001464,2]
[422601247,1779139840000,-157.53190862,0.00014668,2]
[422601308,1779139841000,-615.41,0.00014899,2]
[422601312,1779139841000,-250.83464448,0.000149,2]
[422601305,1779139841000,-615.41,0.00014899,2]
[422601310,1779139841000,-615.41,0.00014899,2]
[422601309,1779139841000,-615.41,0.00014899,2]
[422601311,1779139841000,-615.41,0.00014899,2]
[422601313,1779139841000,-1500000.0,0.000149,2]
[422601314,1779139841000,-16559.1287468,0.000149,3]
[422601317,1779139841000,-5023.42655206,0.000149,2]
[422601316,1779139841000,-10000.0,0.000149,2]
[422601322,1779139841000,-157.53190862,0.00014911,2]
[422601318,1779139841000,-13964.66404928,0.000149,2]
[422601319,1779139841000,-2871.3581957,0.000149,2]
[422601321,1779139841000,-4101.64692944,0.000149,2]
[422601320,1779139841000,-711.17799974,0.000149,2]
[422601302,1779139841000,-500.0,0.00014899,2]
[422601315,1779139841000,-32294.6413,0.000149,2]
[422601306,1779139841000,-615.41,0.00014899,2]
[422601289,1779139841000,-157.53190862,0.0001488,2]
[422601303,1779139841000,-500.0,0.00014899,2]
[422601285,1779139841000,-157.53190862,0.00014865,2]
[422601287,1779139841000,-150.0,0.00014871,2]
[422601286,1779139841000,-150.0,0.00014871,2]
[422601288,1779139841000,-4101.64692944,0.0001488,2]
[422601290,1779139841000,-157.53190862,0.00014895,2]
[422601294,1779139841000,-500.0,0.00014899,2]
[422601293,1779139841000,-434.8361554,0.00014899,2]
[422601292,1779139841000,-150.0,0.00014898,2]
[422601295,1779139841000,-500.0,0.00014899,2]
[422601291,1779139841000,-172.4577245,0.00014897,2]
[422601297,1779139841000,-500.0,0.00014899,2]
[422601296,1779139841000,-500.0,0.00014899,2]
[422601298,1779139841000,-500.0,0.00014899,2]
[422601323,1779139841000,-150.0,0.00014921,2]
[422601301,1779139841000,-274.59660207,0.00014899,2]
[422601299,1779139841000,-500.0,0.00014899,2]
[422601304,1779139841000,-600.03260606,0.00014899,2]
[422601307,1779139841000,-615.41,0.00014899,2]
[422601324,1779139841000,-157.53190862,0.00014926,2]
[422601300,1779139841000,-500.0,0.00014899,2]
[422601326,1779139841000,-150.0,0.00014929,2]
[422601348,1779139841000,-615.41,0.00014999,2]
[422601350,1779139841000,-615.41,0.00014999,2]
[422601351,1779139841000,-615.41,0.00014999,2]
[422601352,1779139841000,-615.41,0.00014999,2]
[422601354,1779139841000,-615.41,0.00014999,2]
[422601355,1779139841000,-615.41,0.00014999,2]
[422601353,1779139841000,-615.41,0.00014999,2]
[422601356,1779139841000,-615.41,0.00014999,2]
[422601362,1779139841000,-300.0,0.00014999,2]
[422601361,1779139841000,-300.0,0.00014999,2]
[422601358,1779139841000,-615.41,0.00014999,2]
[422601357,1779139841000,-615.41,0.00014999,2]
[422601359,1779139841000,-615.44759521,0.00014999,2]
[422601360,1779139841000,-300.0,0.00014999,2]
[422601363,1779139841000,-955276.37069437,0.00015,2]
[422601364,1779139841000,-129157.62419475,0.00015,2]
[422601325,1779139841000,-150.0,0.00014929,2]
[422601347,1779139841000,-615.41,0.00014999,2]
[422601346,1779139841000,-615.41,0.00014999,2]
[422601365,1779139841000,-6859.99277437,0.00015,2]
[422601349,1779139841000,-615.41,0.00014999,2]
[422601331,1779139841000,-157.53190862,0.00014971,2]
[422601333,1779139841000,-150.0,0.00014986,2]
[422601330,1779139841000,-157.53190862,0.00014956,2]
[422601327,1779139841000,-2000.0,0.00014929,2]
[422601332,1779139841000,-278.83771142,0.00014986,2]
[422601334,1779139841000,-151.05845011,0.00014986,2]
[422601335,1779139841000,-164.93102534,0.00014986,2]
[422601345,1779139841000,-398.94,0.00014999,2]
[422601336,1779139841000,-250.88125164,0.00014986,2]
[422601337,1779139841000,-151.33807361,0.00014986,2]
[422601340,1779139841000,-157.53190862,0.00014986,2]
[422601339,1779139841000,-150.00000003,0.00014986,2]
[422601342,1779139841000,-500.0,0.00014999,2]
[422601341,1779139841000,-151.0,0.00014997,2]
[422601343,1779139841000,-500.0,0.00014999,2]
[422601344,1779139841000,-500.0,0.00014999,2]
[422601338,1779139841000,-150.0,0.00014986,2]
[422601329,1779139841000,-157.53190862,0.00014941,2]
[422601375,1779139843000,-882.55272606,0.00015,2]
[422601376,1779139843000,-60.35630197,0.00015,2]
[422601414,1779139846000,-3658.47117051,0.00015,2]
[422601421,1779140861000,500.0,0.00029452,120]
[422601422,1779140941000,1000.0,0.00029457,120]
[422601450,1779141032000,-150.0,0.00013488,2]
[422601448,1779141032000,-151.05845012,0.00013488,2]
[422601449,1779141032000,-150.0,0.00013488,2]